Workbook

Sheet Данные
A1: 2021-12-01 | D1: Инструкция по заполнению данной формы.
A2: Вышеуказанная дата всегда должна начинаться с первого числа. Меняем только месяц (01-02-03 и так далее до 12) если необходимо то и год. Больше никаких изменений не вносим, формат даты должен быть именно такой (01.01.2021). Исходя из этой даты автоматически проставляются даты в столбце ниже. | D2: В данной форме вносятся самостоятельно суммы выручки в столбец «Выручка за день» и дата, остальное - Ф.И.О. новых работников и новых точек реализации при необходимости, остальное выбирается автоматически из выпадающих списков.
B3: Центр.
A4: Дата. | B4: Выручка за день. | D4: Точки реализации. | F4: =A1 -> 2021-12-01
A5: =A1 -> 2021-12-01 | B5: 14815 | D5: Статойл. | F5: Пн | G5: Вт | H5: Ср | I5: Чт | J5: Пт | K5: Сб | L5: Вс
A6: =A5+1 -> 2021-12-02 | B6: 15345 | D6: Аптечка. | F6: =IF(MONTH(DATE(YEAR(F4),MONTH(F4),1)) <>MONTH(DATE(YEAR(F4),MONTH(F4),1)- (WEEKDAY(DATE(YEAR(F4),MONTH(F4),1),2)-1) +{0;1;2;3;4;5}*7+{1,2,3,4,5,6,7}-1)," ", DATE(YEAR(F4),MONTH(F4),1)- (WEEKDAY(DATE(YEAR(F4),MONTH(F4),1),2)-1) +{0;1;2;3;4;5}*7+{1,2,3,4,5,6,7}-1) ->  | H6: 2021-12-01 | I6: 2021-12-02 | J6: 2021-12-03 | K6: 2021-12-04 | L6: 2021-12-05
A7: =A6+1 -> 2021-12-03 | B7: 23140 | D7: Сбер. | F7: 2021-12-06 | G7: 2021-12-07 | H7: 2021-12-08 | I7: 2021-12-09 | J7: 2021-12-10 | K7: 2021-12-11 | L7: 2021-12-12
A8: 2021-12-04 | B8: 20680 | D8: Калинина. | F8: 2021-12-13 | G8: 2021-12-14 | H8: 2021-12-15 | I8: 2021-12-16 | J8: 2021-12-17 | K8: 2021-12-18 | L8: 2021-12-19
A9: 2021-12-05 | B9: 22130 | D9: Зверева. | F9: 2021-12-20 | G9: 2021-12-21 | H9: 2021-12-22 | I9: 2021-12-23 | J9: 2021-12-24 | K9: 2021-12-25 | L9: 2021-12-26
A10: 2021-12-06 | B10: 19705 | D10: Смоленский. | F10: 2021-12-27 | G10: 2021-12-28 | H10: 2021-12-29 | I10: 2021-12-30 | J10: 2021-12-31
A11: 2021-12-07 | B11: 14955 | D11: Вокзальная.
A12: 2021-12-08 | B12: 16960 | D12: Строй-Сам.
A13: 2021-12-09 | B13: 15505 | D13: Прокуратура.
A14: 2021-12-10 | B14: 22925 | C14: Смена | D14: Центр.
A15: 2021-12-11 | B15: 24070 | C15: Больн.
A16: 2021-12-12 | B16: 18815 | C16: Отпуск
A17: 2021-12-13 | B17: 13635 | C17: Стаж.
A18: 2021-12-14 | B18: 16595 | C18: Ежедневная фиксированная выплата
A19: 2021-12-15 | B19: 19687 | C19: 1000
A20: 2021-12-16 | B20: 10177
A21: 2021-12-17 | B21: 21405
A22: 2021-12-18 | B22: 25360
A23: 2021-12-19 | B23: 16837
A24: 2021-12-20 | B24: 16980
A25: 2021-12-21 | B25: 9390
A26: 2021-12-22 | B26: 14510
A27: 2021-12-23 | B27: 13735
A28: 2021-12-24 | B28: 32375
A29: 2021-12-25 | B29: 22830
A30: 2021-12-26 | B30: 18255
A31: 2021-12-27 | B31: 14970
A32: 2021-12-28 | B32: 20215
A33: 2021-12-29 | B33: 21280 | C33: НДФЛ | D33: Стоимость часа подработки. | E33: Выплаты за стажировку.
A34: 2021-12-30 | B34: 28832 | C34: 1690 | D34: 120 | E34: 500
A35: 2021-12-31 | B35: 34967 | C35: 1508 | D35: Отпускные. | E35: Больничный.
A36: Итого: | B36: =SUM(B5:B35) -> 601080 | C36: 0 | D36: 1000 | E36: 700
A37: Ф.И.О. работников. | B37: НДФЛ | C37: Расчета надбавки за стаж | D37: =TODAY() -> 2022-01-16
B38: сумма вычета | C38: дата трудоустройства | D38: стаж работника на данный момент в годах
A39: Гостенков Артур Романович | B39: 1690 | C39: 2017-05-15 | D39: =IFERROR((TODAY()-C39)/365,0) -> 4.676712329
A40: Медведева Лилия Андреевна | B40: 1690 | C40: 2018-09-05 | D40: 3.367123288
A41: Шванёв Никита Андреевич | B41: 1690 | C41: * | D41: =IFERROR((TODAY()-C41)/365,0) -> 0
A42: Васильева Лариса Васильевна | B42: 1690 | C42: * | D42: =IFERROR((TODAY()-C42)/365,0) -> 0
A43: Тумакова Елена Васильевна | B43: 1508 | C43: * | D43: 0
A44: Клубина | B44: 1508 | C44: * | D44: 0
A45: Лифанова Юлия Романовна | B45: 1508 | C45: * | D45: 0
A46: Иванова Юлия Анатольевна | B46: 1508 | C46: * | D46: 0
A47: Темрасова | B47: 1508 | C47: * | D47: 0
A48: Кузьмина Дарья Вадимовна | C48: * | D48: 0
A49: Белова Ирина Сергеевна | C49: * | D49: 0
A50: Беляева Наталья Анатольевна | C50: * | D50: 0
A51: Клименьтьева Любовь Анатольевна | C51: * | D51: 0
A52: Петрова Яна | C52: * | D52: 0
A53: Васильев Александр Николаевич | C53: * | D53: 0
A54: Сторожев Никита Алексеевич | C54: * | D54: 0
A55: Павлова Оксана Владимировна | C55: * | D55: 0
A56: Веретенников Николай | C56: * | D56: 0
A57: Понтелеева Галина Леонидовна | C57: * | D57: 0
A58: Владимирова Светлана | C58: * | D58: 0
A59: Терещенкова Людмила Алексан-на | C59: * | D59: 0
A60: Светлана маленькая | C60: * | D60: 0
A61: Степненок Юрий Владимирович | C61: * | D61: 0
A62: Пестунова Ирина Владимировна | C62: * | D62: 0
A63: Давудова Светлана Оруджевна | C63: * | D63: 0
A64: Соколовская Илона Александровна | C64: * | D64: 0
A65: Навинская Татьяна | C65: * | D65: 0
A66: Иванова Анастасия | C66: * | D66: 0
A67: Быкова Александра | C67: * | D67: 0
C68: * | D68: 0
C69: * | D69: 0
C70: * | D70: 0
C71: * | D71: 0
C72: * | D72: 0
C73: * | D73: 0
C74: * | D74: 0
C75: * | D75: 0
C76: * | D76: 0
C77: * | D77: 0
C78: * | D78: 0
C79: * | D79: 0
C80: * | D80: 0
C81: * | D81: 0
C82: * | D82: 0
C83: * | D83: 0
C84: * | D84: 0
C85: * | D85: 0
C86: * | D86: 0
C87: * | D87: 0
C88: * | D88: 0
C89: * | D89: 0
C90: * | D90: 0
C91: * | D91: 0
C92: * | D92: 0
C93: * | D93: 0
C94: * | D94: 0
C95: * | D95: 0
C96: * | D96: 0
C97: * | D97: 0
C98: * | D98: 0
C99: * | D99: 0
C100: * | D100: 0
C101: * | D101: 0
C102: * | D102: 0
C103: * | D103: 0
C104: * | D104: 0
C105: * | D105: 0
C106: * | D106: =IFERROR((TODAY()-C106)/365,0) -> 0
C107: * | D107: 0
C108: * | D108: 0
C109: * | D109: 0
C110: * | D110: 0
C111: * | D111: 0
C112: * | D112: 0
C113: * | D113: 0
C114: * | D114: 0
C115: * | D115: 0
C116: * | D116: 0
C117: * | D117: 0
C118: * | D118: 0
C119: * | D119: 0
C120: * | D120: 0
C121: * | D121: 0
C122: * | D122: 0
C123: * | D123: 0
C124: * | D124: 0
C125: * | D125: 0
C126: * | D126: 0
C127: * | D127: 0
C128: * | D128: 0
C129: * | D129: 0
C130: * | D130: 0
C131: * | D131: 0
C132: * | D132: 0
C133: * | D133: 0
C134: * | D134: 0
C135: * | D135: 0
C136: * | D136: 0
C137: * | D137: 0
C138: * | D138: 0
C139: * | D139: 0
C140: * | D140: 0
C141: * | D141: 0
C142: * | D142: 0
C143: * | D143: 0
C144: * | D144: 0
C145: * | D145: 0
C146: * | D146: 0
C147: * | D147: 0
C148: * | D148: 0
C149: * | D149: 0
C150: * | D150: 0
C151: * | D151: 0
C152: * | D152: 0
C153: * | D153: 0
C154: * | D154: 0
C155: * | D155: 0
C156: * | D156: 0
C157: * | D157: 0
C158: * | D158: 0
C159: * | D159: 0
C160: * | D160: 0
C161: * | D161: 0
C162: * | D162: 0
C163: * | D163: 0
C164: * | D164: 0
C165: * | D165: 0
C166: * | D166: 0
C167: * | D167: 0
C168: * | D168: 0
C169: * | D169: 0
C170: * | D170: =IFERROR((TODAY()-C170)/365,0) -> 0
C171: * | D171: 0
C172: * | D172: 0
C173: * | D173: 0
C174: * | D174: 0
C175: * | D175: 0
C176: * | D176: 0
C177: * | D177: 0
C178: * | D178: 0
C179: * | D179: 0
C180: * | D180: 0
C181: * | D181: 0
C182: * | D182: 0
C183: * | D183: 0
C184: * | D184: 0
C185: * | D185: 0
C186: * | D186: 0
C187: * | D187: 0
C188: * | D188: 0
C189: * | D189: 0
C190: * | D190: 0
C191: * | D191: 0
C192: * | D192: 0
C193: * | D193: 0
C194: * | D194: 0
C195: * | D195: 0
C196: * | D196: 0
C197: * | D197: 0
C198: * | D198: 0
C199: * | D199: 0
C200: * | D200: 0
... 17 more rows

Sheet Клубина
E1: Расчёт заработной платы работников PizzaPi с коэффициентами в зависимости от продаж и количества смен.
A2: Место - | D2: =Данные!B3 -> Центр. | G2: Клубина | R2: =Данные!A1 -> 2021-12-01
A3: День недели. | C3: Дата. | D3: Смена. / Больн. / Отпуск. / Стаж. | E3: Выручка за день. | F3: Зарплата за день. | G3: Ежедневная фиксированная выплата по 1000 руб. за смену на основной точке. | H3: Фиксированная выплата по 1000 руб. за подработку на другой точке. | I3: Аванс или иные доп. выплаты в счёт зарплаты. | J3: Больничный / Отпускные / Стажеровка. | K3: Дата. | L3: Подработка неполный рабочий день. (указывать количество отработанных часов) | M3: Сумма, которую забрал работник за подработку в зависимости от количества часов. | N3: Зарплата за подработку в зависимости от количества часов. | O3: Подработка на других точках. | P3: Зарплата за подработку на другой точке. | Q3: Премия. | R3: Штраф. | S3: Количество смен, отработанных сверх нормы (с учетом почасовой подработки). | T3: стаж работника на данный момент в годах. | U3: Вычет (НДФЛ) | V3: Примечания.
A4: =TEXT(C4,"ддд") -> ср | C4: =Данные!A5 -> 2021-12-01 | E4: =IF(D4="Смена",Данные!B5,0) -> 0 | F4: =IF(E4<1,0,IF(E4<20000,1500, IF(E4<=23999,1670, IF(E4<=29999,1840, IF(E4<=33999,2000, IF(E4<=35999,2120, IF(E4<=37999,2150, IF(E4<=39999,2180, IF(E4<=41999,2210, IF(E4<=43999,2240, IF(E4<=45999,2270, IF(E4<=47999,2300, IF(E4<=49999,2330, IF(E4<=51999,2360, IF(E4<=53999,2390, IF(E4<=55999,2420, IF(E4<=57999,2450, IF(E4<=59999,2480, IF(E4<=61999,2510, IF(E4<=63999,2540, IF(E4<=65999,2570, IF(E4<=67999,2600, IF(E4<=69999,2630, IF(E4<=71999,2660, IF(E4<=73999,2690, IF(E4<=75999,2720, IF(E4<=250000,2750))))))))))))))))))))))))))) -> 0 | G4: =IF(D4="Смена",Данные!C19,) -> 0 | H4: =IF(O4="Статойл.",Данные!C19, IF(O4="Аптечка.",Данные!C19, IF(O4="Сбер.",Данные!C19, IF(O4="Калинина.",Данные!C19, IF(O4="Зверева.",Данные!C19, IF(O4="Смоленский.",Данные!C19, IF(O4="Вокзальная.",Данные!C19, IF(O4="Строй-Сам.",Данные!C19, IF(O4="Прокуратура.",Данные!C19, IF(O4="Центр.",Данные!C19,)))))))))) -> 0 | J4: =IF(D4="Больн.",Данные!E36,IF(D4="Отпуск",Данные!D36,IF(D4="Стаж.",Данные!E34,0))) -> 0 | K4: =Данные!A5 -> 2021-12-01 | N4: =L4*Данные!D34 -> 0 | S4: =D35+S15-15 -> 1.461538462 | T4: =SUMPRODUCT((Данные!A39:A217=Клубина!G2:Q2)*(Данные!D39:D217)) -> 0 | U4: =SUMPRODUCT((Данные!A39:A217=Клубина!G2:Q2)*(Данные!B39:B217)) -> 1508
A5: =TEXT(C5,"ддд") -> чт | C5: =Данные!A6 -> 2021-12-02 | D5: Смена | E5: =IF(D5="Смена",Данные!B6,0) -> 15345 | F5: =IF(E5<1,0,IF(E5<20000,1500, IF(E5<=23999,1670, IF(E5<=29999,1840, IF(E5<=33999,2000, IF(E5<=35999,2120, IF(E5<=37999,2150, IF(E5<=39999,2180, IF(E5<=41999,2210, IF(E5<=43999,2240, IF(E5<=45999,2270, IF(E5<=47999,2300, IF(E5<=49999,2330, IF(E5<=51999,2360, IF(E5<=53999,2390, IF(E5<=55999,2420, IF(E5<=57999,2450, IF(E5<=59999,2480, IF(E5<=61999,2510, IF(E5<=63999,2540, IF(E5<=65999,2570, IF(E5<=67999,2600, IF(E5<=69999,2630, IF(E5<=71999,2660, IF(E5<=73999,2690, IF(E5<=75999,2720, IF(E5<=250000,2750))))))))))))))))))))))))))) -> 1500 | G5: =IF(D5="Смена",Данные!C19,) -> 1000 | H5: =IF(O5="Статойл.",Данные!C19, IF(O5="Аптечка.",Данные!C19, IF(O5="Сбер.",Данные!C19, IF(O5="Калинина.",Данные!C19, IF(O5="Зверева.",Данные!C19, IF(O5="Смоленский.",Данные!C19, IF(O5="Вокзальная.",Данные!C19, IF(O5="Строй-Сам.",Данные!C19, IF(O5="Прокуратура.",Данные!C19, IF(O5="Центр.",Данные!C19,)))))))))) -> 0 | J5: =IF(D5="Больн.",Данные!E36,IF(D5="Отпуск",Данные!D36,IF(D5="Стаж.",Данные!E34,0))) -> 0 | K5: =Данные!A6 -> 2021-12-02 | N5: =L5*Данные!D34 -> 0
A6: пт | C6: =Данные!A7 -> 2021-12-03 | D6: Смена | E6: =IF(D6="Смена",Данные!B7,0) -> 23140 | F6: 1670 | G6: =IF(D6="Смена",Данные!C19,) -> 1000 | H6: =IF(O6="Статойл.",Данные!C19, IF(O6="Аптечка.",Данные!C19, IF(O6="Сбер.",Данные!C19, IF(O6="Калинина.",Данные!C19, IF(O6="Зверева.",Данные!C19, IF(O6="Смоленский.",Данные!C19, IF(O6="Вокзальная.",Данные!C19, IF(O6="Строй-Сам.",Данные!C19, IF(O6="Прокуратура.",Данные!C19, IF(O6="Центр.",Данные!C19,)))))))))) -> 0 | J6: =IF(D6="Больн.",Данные!E36,IF(D6="Отпуск",Данные!D36,IF(D6="Стаж.",Данные!E34,0))) -> 0 | K6: =Данные!A7 -> 2021-12-03 | N6: =L6*Данные!D34 -> 0
A7: сб | C7: =Данные!A8 -> 2021-12-04 | D7: Смена | E7: =IF(D7="Смена",Данные!B8,0) -> 20680 | F7: 1670 | G7: =IF(D7="Смена",Данные!C19,) -> 1000 | H7: =IF(O7="Статойл.",Данные!C19, IF(O7="Аптечка.",Данные!C19, IF(O7="Сбер.",Данные!C19, IF(O7="Калинина.",Данные!C19, IF(O7="Зверева.",Данные!C19, IF(O7="Смоленский.",Данные!C19, IF(O7="Вокзальная.",Данные!C19, IF(O7="Строй-Сам.",Данные!C19, IF(O7="Прокуратура.",Данные!C19, IF(O7="Центр.",Данные!C19,)))))))))) -> 0 | J7: =IF(D7="Больн.",Данные!E36,IF(D7="Отпуск",Данные!D36,IF(D7="Стаж.",Данные!E34,0))) -> 0 | K7: =Данные!A8 -> 2021-12-04 | N7: =L7*Данные!D34 -> 0
A8: вс | C8: =Данные!A9 -> 2021-12-05 | E8: =IF(D8="Смена",Данные!B9,0) -> 0 | F8: 0 | G8: =IF(D8="Смена",Данные!C19,) -> 0 | H8: =IF(O8="Статойл.",Данные!C19, IF(O8="Аптечка.",Данные!C19, IF(O8="Сбер.",Данные!C19, IF(O8="Калинина.",Данные!C19, IF(O8="Зверева.",Данные!C19, IF(O8="Смоленский.",Данные!C19, IF(O8="Вокзальная.",Данные!C19, IF(O8="Строй-Сам.",Данные!C19, IF(O8="Прокуратура.",Данные!C19, IF(O8="Центр.",Данные!C19,)))))))))) -> 0 | I8: 1500 | J8: =IF(D8="Больн.",Данные!E36,IF(D8="Отпуск",Данные!D36,IF(D8="Стаж.",Данные!E34,0))) -> 0 | K8: =Данные!A9 -> 2021-12-05 | L8: 11 | M8: 1000 | N8: =L8*Данные!D34 -> 1320
A9: пн | C9: =Данные!A10 -> 2021-12-06 | D9: Смена | E9: =IF(D9="Смена",Данные!B10,0) -> 19705 | F9: 1500 | G9: =IF(D9="Смена",Данные!C19,) -> 1000 | H9: =IF(O9="Статойл.",Данные!C19, IF(O9="Аптечка.",Данные!C19, IF(O9="Сбер.",Данные!C19, IF(O9="Калинина.",Данные!C19, IF(O9="Зверева.",Данные!C19, IF(O9="Смоленский.",Данные!C19, IF(O9="Вокзальная.",Данные!C19, IF(O9="Строй-Сам.",Данные!C19, IF(O9="Прокуратура.",Данные!C19, IF(O9="Центр.",Данные!C19,)))))))))) -> 0 | J9: =IF(D9="Больн.",Данные!E36,IF(D9="Отпуск",Данные!D36,IF(D9="Стаж.",Данные!E34,0))) -> 0 | K9: =Данные!A10 -> 2021-12-06 | L9: 8 | N9: =L9*Данные!D34 -> 960
A10: вт | C10: =Данные!A11 -> 2021-12-07 | D10: Смена | E10: =IF(D10="Смена",Данные!B11,0) -> 14955 | F10: 1500 | G10: =IF(D10="Смена",Данные!C19,) -> 1000 | H10: =IF(O10="Статойл.",Данные!C19, IF(O10="Аптечка.",Данные!C19, IF(O10="Сбер.",Данные!C19, IF(O10="Калинина.",Данные!C19, IF(O10="Зверева.",Данные!C19, IF(O10="Смоленский.",Данные!C19, IF(O10="Вокзальная.",Данные!C19, IF(O10="Строй-Сам.",Данные!C19, IF(O10="Прокуратура.",Данные!C19, IF(O10="Центр.",Данные!C19,)))))))))) -> 0 | J10: =IF(D10="Больн.",Данные!E36,IF(D10="Отпуск",Данные!D36,IF(D10="Стаж.",Данные!E34,0))) -> 0 | K10: =Данные!A11 -> 2021-12-07 | N10: =L10*Данные!D34 -> 0
A11: ср | C11: =Данные!A12 -> 2021-12-08 | D11: Смена | E11: =IF(D11="Смена",Данные!B12,0) -> 16960 | F11: 1500 | G11: =IF(D11="Смена",Данные!C19,) -> 1000 | H11: =IF(O11="Статойл.",Данные!C19, IF(O11="Аптечка.",Данные!C19, IF(O11="Сбер.",Данные!C19, IF(O11="Калинина.",Данные!C19, IF(O11="Зверева.",Данные!C19, IF(O11="Смоленский.",Данные!C19, IF(O11="Вокзальная.",Данные!C19, IF(O11="Строй-Сам.",Данные!C19, IF(O11="Прокуратура.",Данные!C19, IF(O11="Центр.",Данные!C19,)))))))))) -> 0 | J11: =IF(D11="Больн.",Данные!E36,IF(D11="Отпуск",Данные!D36,IF(D11="Стаж.",Данные!E34,0))) -> 0 | K11: =Данные!A12 -> 2021-12-08 | N11: =L11*Данные!D34 -> 0 | S11: Перевод почасовой подработки в смены.
A12: чт | C12: =Данные!A13 -> 2021-12-09 | E12: =IF(D12="Смена",Данные!B13,0) -> 0 | F12: 0 | G12: =IF(D12="Смена",Данные!C19,) -> 0 | H12: =IF(O12="Статойл.",Данные!C19, IF(O12="Аптечка.",Данные!C19, IF(O12="Сбер.",Данные!C19, IF(O12="Калинина.",Данные!C19, IF(O12="Зверева.",Данные!C19, IF(O12="Смоленский.",Данные!C19, IF(O12="Вокзальная.",Данные!C19, IF(O12="Строй-Сам.",Данные!C19, IF(O12="Прокуратура.",Данные!C19, IF(O12="Центр.",Данные!C19,)))))))))) -> 0 | J12: =IF(D12="Больн.",Данные!E36,IF(D12="Отпуск",Данные!D36,IF(D12="Стаж.",Данные!E34,0))) -> 0 | K12: =Данные!A13 -> 2021-12-09 | N12: =L12*Данные!D34 -> 0
A13: пт | C13: =Данные!A14 -> 2021-12-10 | D13: Смена | E13: =IF(D13="Смена",Данные!B14,0) -> 22925 | F13: 1670 | G13: =IF(D13="Смена",Данные!C19,) -> 1000 | H13: =IF(O13="Статойл.",Данные!C19, IF(O13="Аптечка.",Данные!C19, IF(O13="Сбер.",Данные!C19, IF(O13="Калинина.",Данные!C19, IF(O13="Зверева.",Данные!C19, IF(O13="Смоленский.",Данные!C19, IF(O13="Вокзальная.",Данные!C19, IF(O13="Строй-Сам.",Данные!C19, IF(O13="Прокуратура.",Данные!C19, IF(O13="Центр.",Данные!C19,)))))))))) -> 0 | J13: =IF(D13="Больн.",Данные!E36,IF(D13="Отпуск",Данные!D36,IF(D13="Стаж.",Данные!E34,0))) -> 0 | K13: =Данные!A14 -> 2021-12-10 | N13: =L13*Данные!D34 -> 0
A14: сб | C14: =Данные!A15 -> 2021-12-11 | D14: Смена | E14: =IF(D14="Смена",Данные!B15,0) -> 24070 | F14: 1840 | G14: =IF(D14="Смена",Данные!C19,) -> 1000 | H14: =IF(O14="Статойл.",Данные!C19, IF(O14="Аптечка.",Данные!C19, IF(O14="Сбер.",Данные!C19, IF(O14="Калинина.",Данные!C19, IF(O14="Зверева.",Данные!C19, IF(O14="Смоленский.",Данные!C19, IF(O14="Вокзальная.",Данные!C19, IF(O14="Строй-Сам.",Данные!C19, IF(O14="Прокуратура.",Данные!C19, IF(O14="Центр.",Данные!C19,)))))))))) -> 0 | J14: =IF(D14="Больн.",Данные!E36,IF(D14="Отпуск",Данные!D36,IF(D14="Стаж.",Данные!E34,0))) -> 0 | K14: =Данные!A15 -> 2021-12-11 | N14: =L14*Данные!D34 -> 0
A15: вс | C15: =Данные!A16 -> 2021-12-12 | E15: =IF(D15="Смена",Данные!B16,0) -> 0 | F15: 0 | G15: =IF(D15="Смена",Данные!C19,) -> 0 | H15: =IF(O15="Статойл.",Данные!C19, IF(O15="Аптечка.",Данные!C19, IF(O15="Сбер.",Данные!C19, IF(O15="Калинина.",Данные!C19, IF(O15="Зверева.",Данные!C19, IF(O15="Смоленский.",Данные!C19, IF(O15="Вокзальная.",Данные!C19, IF(O15="Строй-Сам.",Данные!C19, IF(O15="Прокуратура.",Данные!C19, IF(O15="Центр.",Данные!C19,)))))))))) -> 0 | J15: =IF(D15="Больн.",Данные!E36,IF(D15="Отпуск",Данные!D36,IF(D15="Стаж.",Данные!E34,0))) -> 0 | K15: =Данные!A16 -> 2021-12-12 | N15: =L15*Данные!D34 -> 0 | S15: =L35/13 -> 1.461538462
A16: пн | C16: =Данные!A17 -> 2021-12-13 | D16: Смена | E16: =IF(D16="Смена",Данные!B17,0) -> 13635 | F16: 1500 | G16: =IF(D16="Смена",Данные!C19,) -> 1000 | H16: =IF(O16="Статойл.",Данные!C19, IF(O16="Аптечка.",Данные!C19, IF(O16="Сбер.",Данные!C19, IF(O16="Калинина.",Данные!C19, IF(O16="Зверева.",Данные!C19, IF(O16="Смоленский.",Данные!C19, IF(O16="Вокзальная.",Данные!C19, IF(O16="Строй-Сам.",Данные!C19, IF(O16="Прокуратура.",Данные!C19, IF(O16="Центр.",Данные!C19,)))))))))) -> 0 | J16: =IF(D16="Больн.",Данные!E36,IF(D16="Отпуск",Данные!D36,IF(D16="Стаж.",Данные!E34,0))) -> 0 | K16: =Данные!A17 -> 2021-12-13 | N16: =L16*Данные!D34 -> 0
A17: вт | C17: =Данные!A18 -> 2021-12-14 | D17: Смена | E17: =IF(D17="Смена",Данные!B18,0) -> 16595 | F17: 1500 | G17: =IF(D17="Смена",Данные!C19,) -> 1000 | H17: =IF(O17="Статойл.",Данные!C19, IF(O17="Аптечка.",Данные!C19, IF(O17="Сбер.",Данные!C19, IF(O17="Калинина.",Данные!C19, IF(O17="Зверева.",Данные!C19, IF(O17="Смоленский.",Данные!C19, IF(O17="Вокзальная.",Данные!C19, IF(O17="Строй-Сам.",Данные!C19, IF(O17="Прокуратура.",Данные!C19, IF(O17="Центр.",Данные!C19,)))))))))) -> 0 | J17: =IF(D17="Больн.",Данные!E36,IF(D17="Отпуск",Данные!D36,IF(D17="Стаж.",Данные!E34,0))) -> 0 | K17: =Данные!A18 -> 2021-12-14 | N17: =L17*Данные!D34 -> 0
A18: ср | C18: =Данные!A19 -> 2021-12-15 | D18: Смена | E18: =IF(D18="Смена",Данные!B19,0) -> 19687 | F18: 1500 | G18: =IF(D18="Смена",Данные!C19,) -> 1000 | H18: =IF(O18="Статойл.",Данные!C19, IF(O18="Аптечка.",Данные!C19, IF(O18="Сбер.",Данные!C19, IF(O18="Калинина.",Данные!C19, IF(O18="Зверева.",Данные!C19, IF(O18="Смоленский.",Данные!C19, IF(O18="Вокзальная.",Данные!C19, IF(O18="Строй-Сам.",Данные!C19, IF(O18="Прокуратура.",Данные!C19, IF(O18="Центр.",Данные!C19,)))))))))) -> 0 | I18: 5000 | J18: =IF(D18="Больн.",Данные!E36,IF(D18="Отпуск",Данные!D36,IF(D18="Стаж.",Данные!E34,0))) -> 0 | K18: =Данные!A19 -> 2021-12-15 | N18: =L18*Данные!D34 -> 0
A19: чт | C19: =Данные!A20 -> 2021-12-16 | D19: Смена | E19: =IF(D19="Смена",Данные!B20,0) -> 10177 | F19: 1500 | G19: =IF(D19="Смена",Данные!C19,) -> 1000 | H19: =IF(O19="Статойл.",Данные!C19, IF(O19="Аптечка.",Данные!C19, IF(O19="Сбер.",Данные!C19, IF(O19="Калинина.",Данные!C19, IF(O19="Зверева.",Данные!C19, IF(O19="Смоленский.",Данные!C19, IF(O19="Вокзальная.",Данные!C19, IF(O19="Строй-Сам.",Данные!C19, IF(O19="Прокуратура.",Данные!C19, IF(O19="Центр.",Данные!C19,)))))))))) -> 0 | J19: =IF(D19="Больн.",Данные!E36,IF(D19="Отпуск",Данные!D36,IF(D19="Стаж.",Данные!E34,0))) -> 0 | K19: =Данные!A20 -> 2021-12-16 | N19: =L19*Данные!D34 -> 0
A20: пт | C20: =Данные!A21 -> 2021-12-17 | E20: =IF(D20="Смена",Данные!B21,0) -> 0 | F20: 0 | G20: =IF(D20="Смена",Данные!C19,) -> 0 | H20: =IF(O20="Статойл.",Данные!C19, IF(O20="Аптечка.",Данные!C19, IF(O20="Сбер.",Данные!C19, IF(O20="Калинина.",Данные!C19, IF(O20="Зверева.",Данные!C19, IF(O20="Смоленский.",Данные!C19, IF(O20="Вокзальная.",Данные!C19, IF(O20="Строй-Сам.",Данные!C19, IF(O20="Прокуратура.",Данные!C19, IF(O20="Центр.",Данные!C19,)))))))))) -> 0 | J20: =IF(D20="Больн.",Данные!E36,IF(D20="Отпуск",Данные!D36,IF(D20="Стаж.",Данные!E34,0))) -> 0 | K20: =Данные!A21 -> 2021-12-17 | N20: =L20*Данные!D34 -> 0 | S20: Коэффициент. | T20: Коэффициент.
A21: сб | C21: =Данные!A22 -> 2021-12-18 | D21: Смена | E21: =IF(D21="Смена",Данные!B22,0) -> 25360 | F21: 1840 | G21: =IF(D21="Смена",Данные!C19,) -> 1000 | H21: =IF(O21="Статойл.",Данные!C19, IF(O21="Аптечка.",Данные!C19, IF(O21="Сбер.",Данные!C19, IF(O21="Калинина.",Данные!C19, IF(O21="Зверева.",Данные!C19, IF(O21="Смоленский.",Данные!C19, IF(O21="Вокзальная.",Данные!C19, IF(O21="Строй-Сам.",Данные!C19, IF(O21="Прокуратура.",Данные!C19, IF(O21="Центр.",Данные!C19,)))))))))) -> 0 | J21: =IF(D21="Больн.",Данные!E36,IF(D21="Отпуск",Данные!D36,IF(D21="Стаж.",Данные!E34,0))) -> 0 | K21: =Данные!A22 -> 2021-12-18 | N21: =L21*Данные!D34 -> 0
A22: вс | C22: =Данные!A23 -> 2021-12-19 | D22: Смена | E22: =IF(D22="Смена",Данные!B23,0) -> 16837 | F22: 1500 | G22: =IF(D22="Смена",Данные!C19,) -> 1000 | H22: =IF(O22="Статойл.",Данные!C19, IF(O22="Аптечка.",Данные!C19, IF(O22="Сбер.",Данные!C19, IF(O22="Калинина.",Данные!C19, IF(O22="Зверева.",Данные!C19, IF(O22="Смоленский.",Данные!C19, IF(O22="Вокзальная.",Данные!C19, IF(O22="Строй-Сам.",Данные!C19, IF(O22="Прокуратура.",Данные!C19, IF(O22="Центр.",Данные!C19,)))))))))) -> 0 | J22: =IF(D22="Больн.",Данные!E36,IF(D22="Отпуск",Данные!D36,IF(D22="Стаж.",Данные!E34,0))) -> 0 | K22: =Данные!A23 -> 2021-12-19 | N22: =L22*Данные!D34 -> 0
A23: пн | C23: =Данные!A24 -> 2021-12-20 | D23: Смена | E23: =IF(D23="Смена",Данные!B24,0) -> 16980 | F23: 1500 | G23: =IF(D23="Смена",Данные!C19,) -> 1000 | H23: =IF(O23="Статойл.",Данные!C19, IF(O23="Аптечка.",Данные!C19, IF(O23="Сбер.",Данные!C19, IF(O23="Калинина.",Данные!C19, IF(O23="Зверева.",Данные!C19, IF(O23="Смоленский.",Данные!C19, IF(O23="Вокзальная.",Данные!C19, IF(O23="Строй-Сам.",Данные!C19, IF(O23="Прокуратура.",Данные!C19, IF(O23="Центр.",Данные!C19,)))))))))) -> 0 | J23: =IF(D23="Больн.",Данные!E36,IF(D23="Отпуск",Данные!D36,IF(D23="Стаж.",Данные!E34,0))) -> 0 | K23: =Данные!A24 -> 2021-12-20 | N23: =L23*Данные!D34 -> 0 | S23: =IF(S4>=10,2.5%,IF(S4>=9,2.25%,IF(S4>=8,2%,IF(S4>=7,1.75%,IF(S4>=6,1.5%,IF(S4>=5,1.25%,IF(S4>=4,1%,IF(S4>=3,0.75%,IF(S4>=2,0.5%,IF(S4>=1,0.25%,0%)))))))))) -> 0.0025 | T23: =IF(T4>=10,5%,IF(T4>=9,4.5%,IF(T4>=8,4%,IF(T4>=7,3.5%,IF(T4>=6,3%,IF(T4>=5,2.5%,IF(T4>=4,2%,IF(T4>=3,1.5%,IF(T4>=2,1%,IF(T4>=1,0.5%,0%)))))))))) -> 0
A24: вт | C24: =Данные!A25 -> 2021-12-21 | E24: =IF(D24="Смена",Данные!B25,0) -> 0 | F24: 0 | G24: =IF(D24="Смена",Данные!C19,) -> 0 | H24: =IF(O24="Статойл.",Данные!C19, IF(O24="Аптечка.",Данные!C19, IF(O24="Сбер.",Данные!C19, IF(O24="Калинина.",Данные!C19, IF(O24="Зверева.",Данные!C19, IF(O24="Смоленский.",Данные!C19, IF(O24="Вокзальная.",Данные!C19, IF(O24="Строй-Сам.",Данные!C19, IF(O24="Прокуратура.",Данные!C19, IF(O24="Центр.",Данные!C19,)))))))))) -> 0 | J24: =IF(D24="Больн.",Данные!E36,IF(D24="Отпуск",Данные!D36,IF(D24="Стаж.",Данные!E34,0))) -> 0 | K24: =Данные!A25 -> 2021-12-21 | N24: =L24*Данные!D34 -> 0
A25: ср | C25: =Данные!A26 -> 2021-12-22 | E25: =IF(D25="Смена",Данные!B26,0) -> 0 | F25: 0 | G25: =IF(D25="Смена",Данные!C19,) -> 0 | H25: =IF(O25="Статойл.",Данные!C19, IF(O25="Аптечка.",Данные!C19, IF(O25="Сбер.",Данные!C19, IF(O25="Калинина.",Данные!C19, IF(O25="Зверева.",Данные!C19, IF(O25="Смоленский.",Данные!C19, IF(O25="Вокзальная.",Данные!C19, IF(O25="Строй-Сам.",Данные!C19, IF(O25="Прокуратура.",Данные!C19, IF(O25="Центр.",Данные!C19,)))))))))) -> 0 | J25: =IF(D25="Больн.",Данные!E36,IF(D25="Отпуск",Данные!D36,IF(D25="Стаж.",Данные!E34,0))) -> 0 | K25: =Данные!A26 -> 2021-12-22 | N25: =L25*Данные!D34 -> 0
A26: чт | C26: =Данные!A27 -> 2021-12-23 | E26: =IF(D26="Смена",Данные!B27,0) -> 0 | F26: 0 | G26: =IF(D26="Смена",Данные!C19,) -> 0 | H26: =IF(O26="Статойл.",Данные!C19, IF(O26="Аптечка.",Данные!C19, IF(O26="Сбер.",Данные!C19, IF(O26="Калинина.",Данные!C19, IF(O26="Зверева.",Данные!C19, IF(O26="Смоленский.",Данные!C19, IF(O26="Вокзальная.",Данные!C19, IF(O26="Строй-Сам.",Данные!C19, IF(O26="Прокуратура.",Данные!C19, IF(O26="Центр.",Данные!C19,)))))))))) -> 0 | J26: =IF(D26="Больн.",Данные!E36,IF(D26="Отпуск",Данные!D36,IF(D26="Стаж.",Данные!E34,0))) -> 0 | K26: =Данные!A27 -> 2021-12-23 | N26: =L26*Данные!D34 -> 0
A27: пт | C27: =Данные!A28 -> 2021-12-24 | E27: =IF(D27="Смена",Данные!B28,0) -> 0 | F27: 0 | G27: =IF(D27="Смена",Данные!C19,) -> 0 | H27: =IF(O27="Статойл.",Данные!C19, IF(O27="Аптечка.",Данные!C19, IF(O27="Сбер.",Данные!C19, IF(O27="Калинина.",Данные!C19, IF(O27="Зверева.",Данные!C19, IF(O27="Смоленский.",Данные!C19, IF(O27="Вокзальная.",Данные!C19, IF(O27="Строй-Сам.",Данные!C19, IF(O27="Прокуратура.",Данные!C19, IF(O27="Центр.",Данные!C19,)))))))))) -> 0 | J27: =IF(D27="Больн.",Данные!E36,IF(D27="Отпуск",Данные!D36,IF(D27="Стаж.",Данные!E34,0))) -> 0 | K27: =Данные!A28 -> 2021-12-24 | N27: =L27*Данные!D34 -> 0
A28: сб | C28: =Данные!A29 -> 2021-12-25 | E28: =IF(D28="Смена",Данные!B29,0) -> 0 | F28: 0 | G28: =IF(D28="Смена",Данные!C19,) -> 0 | H28: =IF(O28="Статойл.",Данные!C19, IF(O28="Аптечка.",Данные!C19, IF(O28="Сбер.",Данные!C19, IF(O28="Калинина.",Данные!C19, IF(O28="Зверева.",Данные!C19, IF(O28="Смоленский.",Данные!C19, IF(O28="Вокзальная.",Данные!C19, IF(O28="Строй-Сам.",Данные!C19, IF(O28="Прокуратура.",Данные!C19, IF(O28="Центр.",Данные!C19,)))))))))) -> 0 | J28: =IF(D28="Больн.",Данные!E36,IF(D28="Отпуск",Данные!D36,IF(D28="Стаж.",Данные!E34,0))) -> 0 | K28: =Данные!A29 -> 2021-12-25 | N28: =L28*Данные!D34 -> 0
A29: вс | C29: =Данные!A30 -> 2021-12-26 | E29: =IF(D29="Смена",Данные!B30,0) -> 0 | F29: 0 | G29: =IF(D29="Смена",Данные!C19,) -> 0 | H29: =IF(O29="Статойл.",Данные!C19, IF(O29="Аптечка.",Данные!C19, IF(O29="Сбер.",Данные!C19, IF(O29="Калинина.",Данные!C19, IF(O29="Зверева.",Данные!C19, IF(O29="Смоленский.",Данные!C19, IF(O29="Вокзальная.",Данные!C19, IF(O29="Строй-Сам.",Данные!C19, IF(O29="Прокуратура.",Данные!C19, IF(O29="Центр.",Данные!C19,)))))))))) -> 0 | J29: =IF(D29="Больн.",Данные!E36,IF(D29="Отпуск",Данные!D36,IF(D29="Стаж.",Данные!E34,0))) -> 0 | K29: =Данные!A30 -> 2021-12-26 | N29: =L29*Данные!D34 -> 0
A30: пн | C30: =Данные!A31 -> 2021-12-27 | E30: =IF(D30="Смена",Данные!B31,0) -> 0 | F30: 0 | G30: =IF(D30="Смена",Данные!C19,) -> 0 | H30: =IF(O30="Статойл.",Данные!C19, IF(O30="Аптечка.",Данные!C19, IF(O30="Сбер.",Данные!C19, IF(O30="Калинина.",Данные!C19, IF(O30="Зверева.",Данные!C19, IF(O30="Смоленский.",Данные!C19, IF(O30="Вокзальная.",Данные!C19, IF(O30="Строй-Сам.",Данные!C19, IF(O30="Прокуратура.",Данные!C19, IF(O30="Центр.",Данные!C19,)))))))))) -> 0 | J30: =IF(D30="Больн.",Данные!E36,IF(D30="Отпуск",Данные!D36,IF(D30="Стаж.",Данные!E34,0))) -> 0 | K30: =Данные!A31 -> 2021-12-27 | N30: =L30*Данные!D34 -> 0
A31: вт | C31: =Данные!A32 -> 2021-12-28 | E31: =IF(D31="Смена",Данные!B32,0) -> 0 | F31: 0 | G31: =IF(D31="Смена",Данные!C19,) -> 0 | H31: =IF(O31="Статойл.",Данные!C19, IF(O31="Аптечка.",Данные!C19, IF(O31="Сбер.",Данные!C19, IF(O31="Калинина.",Данные!C19, IF(O31="Зверева.",Данные!C19, IF(O31="Смоленский.",Данные!C19, IF(O31="Вокзальная.",Данные!C19, IF(O31="Строй-Сам.",Данные!C19, IF(O31="Прокуратура.",Данные!C19, IF(O31="Центр.",Данные!C19,)))))))))) -> 0 | I31: 1000 | J31: =IF(D31="Больн.",Данные!E36,IF(D31="Отпуск",Данные!D36,IF(D31="Стаж.",Данные!E34,0))) -> 0 | K31: =Данные!A32 -> 2021-12-28 | N31: =L31*Данные!D34 -> 0
A32: ср | C32: =Данные!A33 -> 2021-12-29 | E32: =IF(D32="Смена",Данные!B33,0) -> 0 | F32: 0 | G32: =IF(D32="Смена",Данные!C19,) -> 0 | H32: =IF(O32="Статойл.",Данные!C19, IF(O32="Аптечка.",Данные!C19, IF(O32="Сбер.",Данные!C19, IF(O32="Калинина.",Данные!C19, IF(O32="Зверева.",Данные!C19, IF(O32="Смоленский.",Данные!C19, IF(O32="Вокзальная.",Данные!C19, IF(O32="Строй-Сам.",Данные!C19, IF(O32="Прокуратура.",Данные!C19, IF(O32="Центр.",Данные!C19,)))))))))) -> 0 | J32: =IF(D32="Больн.",Данные!E36,IF(D32="Отпуск",Данные!D36,IF(D32="Стаж.",Данные!E34,0))) -> 0 | K32: =Данные!A33 -> 2021-12-29 | N32: =L32*Данные!D34 -> 0
A33: чт | C33: =Данные!A34 -> 2021-12-30 | E33: =IF(D33="Смена",Данные!B34,0) -> 0 | F33: 0 | G33: =IF(D33="Смена",Данные!C19,) -> 0 | H33: =IF(O33="Статойл.",Данные!C19, IF(O33="Аптечка.",Данные!C19, IF(O33="Сбер.",Данные!C19, IF(O33="Калинина.",Данные!C19, IF(O33="Зверева.",Данные!C19, IF(O33="Смоленский.",Данные!C19, IF(O33="Вокзальная.",Данные!C19, IF(O33="Строй-Сам.",Данные!C19, IF(O33="Прокуратура.",Данные!C19, IF(O33="Центр.",Данные!C19,)))))))))) -> 0 | J33: =IF(D33="Больн.",Данные!E36,IF(D33="Отпуск",Данные!D36,IF(D33="Стаж.",Данные!E34,0))) -> 0 | K33: =Данные!A34 -> 2021-12-30 | N33: =L33*Данные!D34 -> 0
A34: пт | C34: =Данные!A35 -> 2021-12-31 | E34: =IF(D34="Смена",Данные!B35,0) -> 0 | F34: 0 | G34: =IF(D34="Смена",Данные!C19,) -> 0 | H34: =IF(O34="Статойл.",Данные!C19, IF(O34="Аптечка.",Данные!C19, IF(O34="Сбер.",Данные!C19, IF(O34="Калинина.",Данные!C19, IF(O34="Зверева.",Данные!C19, IF(O34="Смоленский.",Данные!C19, IF(O34="Вокзальная.",Данные!C19, IF(O34="Строй-Сам.",Данные!C19, IF(O34="Прокуратура.",Данные!C19, IF(O34="Центр.",Данные!C19,)))))))))) -> 0 | J34: =IF(D34="Больн.",Данные!E36,IF(D34="Отпуск",Данные!D36,IF(D34="Стаж.",Данные!E34,0))) -> 0 | K34: =Данные!A35 -> 2021-12-31 | N34: =L34*Данные!D34 -> 0
A35: Количество смен и подработок - | D35: =COUNTIF(D4:D34,Данные!C14)+O35 -> 15 | E35: Расчеты. | F35: =SUM(F4:F34) -> 23690 | G35: 15000 | H35: =SUM(H4:H34) -> 0 | I35: 7500 | J35: 0 | K35: Всего часов - | L35: 19 | M35: =SUM(M4:M34) -> 1000 | N35: 2280 | O35: =COUNTA(O4:O34) -> 0 | P35: =SUM(P4:P34) -> 0 | Q35: 0 | R35: 0 | S35: =D36*S23 -> 64.925 | T35: =D36*T23 -> 0 | U35: =U4 -> 1508 | V35: В расчетах зарплаты могут присутствовать ошибки. Обо всех ошибках сообщайте, будем разбираться. Ошибки связанные с неправильным заполнением табеля разбираются только по усмотрению Оксаны Ивановны.
A36: Сумма начисленной заработной платы работнику за отчетный месяц. | D36: =SUM(F35+J35+N35+P35) -> 25970 | F36: Сумма уже выплаченных работнику денежных средств за отработанный месяц. | H36: =SUM(G35+H35+I35+J35+M35) -> 23500 | J36: Сумма стимулирующих и социальных выплат работнику за отчетный месяц. | L36: =Q35+S35+T35 -> 64.925 | M36: Итоговая сумма начисленной заработной платы и иных стимулирующих и социальных выплат работнику за отчетный месяц. | P36: =D36+T35+S35+Q35 -> 26034.925 | R36: Оставшаяся сумма, подлежащая выплате работнику за отчетный месяц или задолженность работника перед работодателем. | V36: =SUM(P36-H36-R35-U35) -> 1026.925
